[Event "Titled Tuesday Blitz August 22 Early 2023"]
[White "Martinez Reyes, Pedro Ramon"]
[Black "Putnam, Liam"]
[WhiteFideId "3901807"]
[BlackFideId "30938279"]
[WhiteElo "2556"]
[BlackElo "2815"]
[Result "0-1"]
[Round "5"]
[TimeControl "180+1"]
[Date "2023.08.22"]
[WhiteClock "0:00:01"]
[BlackClock "0:00:05"]
[Board "68"]

1. d4 {[%clk 0:03:00]}  Nf6 {[%clk 0:02:59]} 2. c4 {[%clk 0:03:00]}  g6 {[%clk 0:02:54]} 3. Nc3 {[%clk 0:02:58]}  Bg7 {[%clk 0:02:55]} 4. e4 {[%clk 0:02:55]}  O-O {[%clk 0:02:56]} 5. Bd3 {[%clk 0:02:55]}  d6 {[%clk 0:02:56]} 6. Nge2 {[%clk 0:02:52]}  Nc6 {[%clk 0:02:48]} 7. O-O {[%clk 0:02:41]}  e5 {[%clk 0:02:46]} 8. d5 {[%clk 0:02:37]}  Ne7 {[%clk 0:02:47]} 9. Rb1 {[%clk 0:02:26]}  a5 {[%clk 0:02:43]} 10. a3 {[%clk 0:02:23]}  Nh5 {[%clk 0:02:34]} 11. b4 {[%clk 0:02:17]}  f5 {[%clk 0:02:34]} 12. c5 {[%clk 0:02:10]}  Nf4 {[%clk 0:02:17]} 13. Bc2 {[%clk 0:01:49]}  axb4 {[%clk 0:02:15]} 14. axb4 {[%clk 0:01:47]}  fxe4 {[%clk 0:02:12]} 15. Bxe4 {[%clk 0:01:45]}  Bf5 {[%clk 0:02:07]} 16. Ng3 {[%clk 0:01:42]}  Bxe4 {[%clk 0:02:01]} 17. Ngxe4 {[%clk 0:01:37]}  Nf5 {[%clk 0:02:01]} 18. Be3 {[%clk 0:01:27]}  Qd7 {[%clk 0:01:23]} 19. Ng5 {[%clk 0:01:20]}  h6 {[%clk 0:01:15]} 20. Nge4 {[%clk 0:01:20]}  Nh4 {[%clk 0:00:59]} 21. Bxf4 {[%clk 0:01:04]}  exf4 {[%clk 0:01:00]} 22. f3 {[%clk 0:01:03]}  Nf5 {[%clk 0:00:54]} 23. Qd3 {[%clk 0:01:02]}  Ra3 {[%clk 0:00:51]} 24. Ra1 {[%clk 0:00:46]}  Rfa8 {[%clk 0:00:48]} 25. Rxa3 {[%clk 0:00:46]}  Rxa3 {[%clk 0:00:49]} 26. Qb5 {[%clk 0:00:44]}  c6 {[%clk 0:00:30]} 27. dxc6 {[%clk 0:00:34]}  bxc6 {[%clk 0:00:31]} 28. Qb8+ {[%clk 0:00:20]}  Kh7 {[%clk 0:00:31]} 29. Nb1 {[%clk 0:00:15]}  Ra2 {[%clk 0:00:30]} 30. cxd6 {[%clk 0:00:07]}  Ne3 {[%clk 0:00:25]} 31. Qc7 {[%clk 0:00:07]}  Rxg2+ {[%clk 0:00:05]} 32. Kh1 {[%clk 0:00:07]}  Qf5 {[%clk 0:00:05]} 33. Rg1 {[%clk 0:00:01]}  Rxh2+ {[%clk 0:00:04]} 34. Kxh2 {[%clk 0:00:01]}  Qh5# {[%clk 0:00:05]} 0-1


[Site "https://www.chess.com"]

[Event "Titled Tuesday Blitz August 22 Early 2023"]
[White "Willy, Stephen"]
[Black "Starozhilov, Leonid"]
[WhiteFideId "30981468"]
[BlackFideId "14106752"]
[WhiteElo "2558"]
[BlackElo "2762"]
[Result "0-1"]
[Round "5"]
[TimeControl "180+1"]
[Date "2023.08.22"]
[WhiteClock "0:00:17"]
[BlackClock "0:01:10"]
[Board "69"]

1. e4 {[%clk 0:02:50]}  g6 {[%clk 0:02:57]} 2. d4 {[%clk 0:02:50]}  Bg7 {[%clk 0:02:58]} 3. Nc3 {[%clk 0:02:50]}  d6 {[%clk 0:02:59]} 4. f4 {[%clk 0:02:46]}  Nf6 {[%clk 0:02:56]} 5. Nf3 {[%clk 0:02:46]}  O-O {[%clk 0:02:56]} 6. Be3 {[%clk 0:02:43]}  Nc6 {[%clk 0:02:46]} 7. h3 {[%clk 0:02:36]}  a6 {[%clk 0:02:34]} 8. e5 {[%clk 0:02:11]}  Nh5 {[%clk 0:02:28]} 9. Kf2 {[%clk 0:02:06]}  f6 {[%clk 0:02:02]} 10. g4 {[%clk 0:01:51]}  Nxf4 {[%clk 0:02:01]} 11. Bxf4 {[%clk 0:01:46]}  fxe5 {[%clk 0:02:01]} 12. Bg3 {[%clk 0:01:32]}  exd4 {[%clk 0:02:01]} 13. Ne2 {[%clk 0:01:25]}  e5 {[%clk 0:01:58]} 14. Kg2 {[%clk 0:01:22]}  Be6 {[%clk 0:01:47]} 15. Nd2 {[%clk 0:01:09]}  Bd5+ {[%clk 0:01:42]} 16. Kh2 {[%clk 0:01:08]}  Bxh1 {[%clk 0:01:42]} 17. Kxh1 {[%clk 0:01:09]}  d5 {[%clk 0:01:39]} 18. Bg2 {[%clk 0:01:04]}  e4 {[%clk 0:01:32]} 19. Nb3 {[%clk 0:01:02]}  Be5 {[%clk 0:01:15]} 20. Bxe5 {[%clk 0:00:56]}  Nxe5 {[%clk 0:01:15]} 21. Qxd4 {[%clk 0:00:46]}  Nf3 {[%clk 0:01:15]} 22. Qc3 {[%clk 0:00:17]}  Qd6 {[%clk 0:01:10]} 0-1


[Site "https://www.chess.com"]

[Event "Titled Tuesday Blitz August 22 Early 2023"]
[White "Matinian, Nikita"]
[Black "Budrewicz, Krzysztof"]
[WhiteFideId "24129100"]
[BlackFideId "1127950"]
[WhiteElo "2713"]
[BlackElo "2546"]
[Result "1-0"]
[Round "5"]
[TimeControl "180+1"]
[Date "2023.08.22"]
[WhiteClock "0:00:04"]
[BlackClock "0:00:00"]
[Board "71"]

1. e4 {[%clk 0:03:00]}  e5 {[%clk 0:02:58]} 2. Nf3 {[%clk 0:03:00]}  Nc6 {[%clk 0:02:58]} 3. Bb5 {[%clk 0:03:01]}  a6 {[%clk 0:02:58]} 4. Ba4 {[%clk 0:03:01]}  Nge7 {[%clk 0:02:58]} 5. c3 {[%clk 0:03:01]}  Ng6 {[%clk 0:02:57]} 6. d4 {[%clk 0:02:58]}  b5 {[%clk 0:02:52]} 7. Bb3 {[%clk 0:02:56]}  Be7 {[%clk 0:02:49]} 8. h4 {[%clk 0:02:46]}  h5 {[%clk 0:02:40]} 9. Ng5 {[%clk 0:02:45]}  Bxg5 {[%clk 0:02:36]} 10. Bxg5 {[%clk 0:02:46]}  f6 {[%clk 0:02:37]} 11. Be3 {[%clk 0:02:46]}  Na5 {[%clk 0:02:35]} 12. Bc2 {[%clk 0:02:39]}  Nc4 {[%clk 0:02:29]} 13. Nd2 {[%clk 0:02:39]}  Nxe3 {[%clk 0:02:19]} 14. fxe3 {[%clk 0:02:40]}  Qe7 {[%clk 0:02:19]} 15. a4 {[%clk 0:02:34]}  Bb7 {[%clk 0:02:18]} 16. axb5 {[%clk 0:02:27]}  axb5 {[%clk 0:02:18]} 17. Rxa8+ {[%clk 0:02:26]}  Bxa8 {[%clk 0:02:19]} 18. b4 {[%clk 0:02:26]}  d6 {[%clk 0:02:11]} 19. Bd3 {[%clk 0:02:22]}  c6 {[%clk 0:02:07]} 20. Qf3 {[%clk 0:02:20]}  Bb7 {[%clk 0:02:04]} 21. Nb3 {[%clk 0:02:14]}  Bc8 {[%clk 0:02:03]} 22. Na5 {[%clk 0:02:13]}  Bg4 {[%clk 0:01:57]} 23. Qf1 {[%clk 0:02:06]}  Qc7 {[%clk 0:01:51]} 24. Nxc6 {[%clk 0:02:03]}  O-O {[%clk 0:01:49]} 25. Bxb5 {[%clk 0:02:02]}  Ra8 {[%clk 0:01:47]} 26. Qc4+ {[%clk 0:01:57]}  Kh7 {[%clk 0:01:43]} 27. Na5 {[%clk 0:01:57]}  Qd8 {[%clk 0:01:31]} 28. Bc6 {[%clk 0:01:49]}  Rb8 {[%clk 0:01:24]} 29. Kd2 {[%clk 0:01:43]}  f5 {[%clk 0:01:14]} 30. exf5 {[%clk 0:01:42]}  Bxf5 {[%clk 0:01:14]} 31. Qf7 {[%clk 0:01:33]}  Qc8 {[%clk 0:00:44]} 32. Rf1 {[%clk 0:01:23]}  Be6 {[%clk 0:00:44]} 33. Qf3 {[%clk 0:01:18]}  Bg4 {[%clk 0:00:43]} 34. Qe4 {[%clk 0:01:17]}  Kh6 {[%clk 0:00:43]} 35. g3 {[%clk 0:01:15]}  Ne7 {[%clk 0:00:38]} 36. Rf7 {[%clk 0:01:09]}  Qe6 {[%clk 0:00:35]} 37. Rf2 {[%clk 0:01:00]}  Qa2+ {[%clk 0:00:35]} 38. Qc2 {[%clk 0:01:00]}  Qe6 {[%clk 0:00:31]} 39. Be4 {[%clk 0:00:48]}  d5 {[%clk 0:00:25]} 40. Bd3 {[%clk 0:00:48]}  e4 {[%clk 0:00:25]} 41. Be2 {[%clk 0:00:30]}  Bxe2 {[%clk 0:00:24]} 42. Rxe2 {[%clk 0:00:31]}  Nf5 {[%clk 0:00:25]} 43. Rg2 {[%clk 0:00:26]}  Rf8 {[%clk 0:00:23]} 44. Kc1 {[%clk 0:00:19]}  Kh7 {[%clk 0:00:20]} 45. Qd2 {[%clk 0:00:17]}  Nh6 {[%clk 0:00:19]} 46. Kb2 {[%clk 0:00:16]}  Ng4 {[%clk 0:00:19]} 47. Re2 {[%clk 0:00:14]}  Qd6 {[%clk 0:00:18]} 48. c4 {[%clk 0:00:13]}  dxc4 {[%clk 0:00:17]} 49. Nxc4 {[%clk 0:00:14]}  Qxg3 {[%clk 0:00:17]} 50. d5 {[%clk 0:00:14]}  Rb8 {[%clk 0:00:15]} 51. d6 {[%clk 0:00:13]}  Nf6 {[%clk 0:00:12]} 52. Rg2 {[%clk 0:00:10]}  Qxh4 {[%clk 0:00:10]} 53. d7 {[%clk 0:00:06]}  Ng4 {[%clk 0:00:10]} 54. Qd5 {[%clk 0:00:04]}  Kh6 {[%clk 0:00:07]} 55. Qxe4 {[%clk 0:00:03]}  Qf6+ {[%clk 0:00:07]} 56. Qd4 {[%clk 0:00:02]}  Rxb4+ {[%clk 0:00:07]} 57. Kc3 {[%clk 0:00:02]}  Qxd4+ {[%clk 0:00:07]} 58. exd4 {[%clk 0:00:03]}  Rb8 {[%clk 0:00:07]} 59. Ne5 {[%clk 0:00:03]}  Rd8 {[%clk 0:00:06]} 60. Nf7+ {[%clk 0:00:03]}  Kg6 {[%clk 0:00:00]} 61. Nxd8 {[%clk 0:00:04]} 1-0


[Site "https://www.chess.com"]

[Event "Titled Tuesday Blitz August 22 Early 2023"]
[White "Shoker, Samy"]
[Black "Vovk, Orest"]
[WhiteFideId "627143"]
[BlackFideId "14113490"]
[WhiteElo "2708"]
[BlackElo "2539"]
[Result "1-0"]
[Round "5"]
[TimeControl "180+1"]
[Date "2023.08.22"]
[WhiteClock "0:00:44"]
[BlackClock "0:00:00"]
[Board "73"]

1. c4 {[%clk 0:02:58]}  g5 {[%clk 0:02:58]} 2. h4 {[%clk 0:02:54]}  g4 {[%clk 0:02:58]} 3. h5 {[%clk 0:02:53]}  g3 {[%clk 0:02:51]} 4. fxg3 {[%clk 0:02:49]}  Bg7 {[%clk 0:02:50]} 5. d4 {[%clk 0:02:48]}  c5 {[%clk 0:02:50]} 6. e3 {[%clk 0:02:26]}  Nc6 {[%clk 0:02:47]} 7. d5 {[%clk 0:02:22]}  Ne5 {[%clk 0:02:41]} 8. Nh3 {[%clk 0:02:21]}  Nf6 {[%clk 0:02:33]} 9. Nf4 {[%clk 0:02:19]}  Ne4 {[%clk 0:02:24]} 10. h6 {[%clk 0:02:15]}  Bf6 {[%clk 0:02:24]} 11. Nh5 {[%clk 0:02:09]}  Bg5 {[%clk 0:02:13]} 12. Bd3 {[%clk 0:02:03]}  Nf6 {[%clk 0:02:01]} 13. Nc3 {[%clk 0:01:53]}  d6 {[%clk 0:01:55]} 14. Nxf6+ {[%clk 0:01:51]}  Bxf6 {[%clk 0:01:47]} 15. Be2 {[%clk 0:01:43]}  Bf5 {[%clk 0:01:37]} 16. e4 {[%clk 0:01:41]}  Bd7 {[%clk 0:01:29]} 17. Bf4 {[%clk 0:01:37]}  Qa5 {[%clk 0:01:18]} 18. Qd2 {[%clk 0:01:37]}  Qb4 {[%clk 0:01:09]} 19. Nb5 {[%clk 0:01:24]}  Bxb5 {[%clk 0:00:39]} 20. Qxb4 {[%clk 0:01:20]}  cxb4 {[%clk 0:00:40]} 21. cxb5 {[%clk 0:01:21]}  Rc8 {[%clk 0:00:37]} 22. Rc1 {[%clk 0:01:14]}  Rxc1+ {[%clk 0:00:31]} 23. Bxc1 {[%clk 0:01:15]}  Kd7 {[%clk 0:00:29]} 24. Bd2 {[%clk 0:01:04]}  b3 {[%clk 0:00:28]} 25. axb3 {[%clk 0:01:02]}  Rc8 {[%clk 0:00:19]} 26. Bc3 {[%clk 0:01:02]}  Rg8 {[%clk 0:00:18]} 27. Kf2 {[%clk 0:01:00]}  Ng4+ {[%clk 0:00:06]} 28. Bxg4+ {[%clk 0:00:59]}  Rxg4 {[%clk 0:00:06]} 29. Bxf6 {[%clk 0:00:57]}  exf6 {[%clk 0:00:07]} 30. Kf3 {[%clk 0:00:57]}  f5 {[%clk 0:00:07]} 31. exf5 {[%clk 0:00:54]}  Rb4 {[%clk 0:00:07]} 32. Ra1 {[%clk 0:00:51]}  Rxb3+ {[%clk 0:00:07]} 33. Kg4 {[%clk 0:00:51]}  Rxb2 {[%clk 0:00:07]} 34. Rxa7 {[%clk 0:00:50]}  Rxb5 {[%clk 0:00:07]} 35. Kg5 {[%clk 0:00:51]}  Ke7 {[%clk 0:00:06]} 36. g4 {[%clk 0:00:49]}  f6+ {[%clk 0:00:03]} 37. Kh5 {[%clk 0:00:48]}  Rb1 {[%clk 0:00:03]} 38. g5 {[%clk 0:00:48]}  fxg5 {[%clk 0:00:01]} 39. Kxg5 {[%clk 0:00:49]}  Kf7 {[%clk 0:00:02]} 40. g4 {[%clk 0:00:48]}  Rb5 {[%clk 0:00:01]} 41. Kh5 {[%clk 0:00:47]}  Rb1 {[%clk 0:00:01]} 42. Kg5 {[%clk 0:00:42]}  Rb5 {[%clk 0:00:01]} 43. Ra8 {[%clk 0:00:43]}  Rxd5 {[%clk 0:00:00]} 44. Rh8 {[%clk 0:00:44]} 1-0


[Site "https://www.chess.com"]

[Event "Titled Tuesday Blitz August 22 Early 2023"]
[White "Jovic, Stanoje"]
[Black "KarolKacprzak"]
[WhiteFideId "905020"]
[WhiteElo "2535"]
[BlackElo "2686"]
[Result "0-1"]
[Round "5"]
[TimeControl "180+1"]
[Date "2023.08.22"]
[WhiteClock "0:00:00"]
[BlackClock "0:00:37"]
[Board "77"]

1. c4 {[%clk 0:03:00]}  c5 {[%clk 0:02:57]} 2. g3 {[%clk 0:03:00]}  g6 {[%clk 0:02:57]} 3. Bg2 {[%clk 0:03:00]}  Bg7 {[%clk 0:02:57]} 4. Nc3 {[%clk 0:03:00]}  Nc6 {[%clk 0:02:58]} 5. Nf3 {[%clk 0:03:01]}  d6 {[%clk 0:02:58]} 6. O-O {[%clk 0:03:00]}  e6 {[%clk 0:02:59]} 7. d3 {[%clk 0:02:56]}  Nge7 {[%clk 0:02:59]} 8. Bd2 {[%clk 0:02:56]}  b6 {[%clk 0:02:59]} 9. a3 {[%clk 0:02:54]}  Bb7 {[%clk 0:02:58]} 10. Rb1 {[%clk 0:02:55]}  O-O {[%clk 0:02:59]} 11. b4 {[%clk 0:02:55]}  Qd7 {[%clk 0:02:59]} 12. b5 {[%clk 0:02:54]}  Ne5 {[%clk 0:02:54]} 13. Nxe5 {[%clk 0:02:52]}  dxe5 {[%clk 0:02:55]} 14. Bxb7 {[%clk 0:02:50]}  Qxb7 {[%clk 0:02:56]} 15. a4 {[%clk 0:02:47]}  h6 {[%clk 0:02:52]} 16. a5 {[%clk 0:02:47]}  f5 {[%clk 0:02:51]} 17. Qc1 {[%clk 0:02:42]}  Kh7 {[%clk 0:02:51]} 18. Qc2 {[%clk 0:02:32]}  g5 {[%clk 0:02:50]} 19. Ra1 {[%clk 0:02:31]}  Ng6 {[%clk 0:02:49]} 20. Ra4 {[%clk 0:02:25]}  g4 {[%clk 0:02:33]} 21. Rfa1 {[%clk 0:02:23]}  e4 {[%clk 0:01:52]} 22. axb6 {[%clk 0:02:18]}  exd3 {[%clk 0:01:44]} 23. exd3 {[%clk 0:02:12]}  axb6 {[%clk 0:01:39]} 24. Rxa8 {[%clk 0:01:58]}  Rxa8 {[%clk 0:01:40]} 25. Rxa8 {[%clk 0:01:58]}  Qxa8 {[%clk 0:01:41]} 26. Ne2 {[%clk 0:01:39]}  Ne5 {[%clk 0:01:39]} 27. Bc3 {[%clk 0:01:14]}  Nf3+ {[%clk 0:01:36]} 28. Kf1 {[%clk 0:01:13]}  Nxh2+ {[%clk 0:01:25]} 29. Kg1 {[%clk 0:01:12]}  Nf3+ {[%clk 0:01:22]} 30. Kf1 {[%clk 0:01:12]}  Bxc3 {[%clk 0:01:12]} 31. Qxc3 {[%clk 0:01:07]}  Qa4 {[%clk 0:01:08]} 32. Qc1 {[%clk 0:00:52]}  Qb3 {[%clk 0:01:02]} 33. Nc3 {[%clk 0:00:36]}  Qb4 {[%clk 0:00:47]} 34. Kg2 {[%clk 0:00:31]}  Qa5 {[%clk 0:00:46]} 35. Ne2 {[%clk 0:00:20]}  Qa8 {[%clk 0:00:46]} 36. Kf1 {[%clk 0:00:13]}  Nd4 {[%clk 0:00:46]} 37. Ng1 {[%clk 0:00:10]}  Qh1 {[%clk 0:00:39]} 38. Qf4 {[%clk 0:00:00]}  Nf3 {[%clk 0:00:37]} 0-1


[Site "https://www.chess.com"]

[Event "Titled Tuesday Blitz August 22 Early 2023"]
[White "Jaskolka, Tomasz"]
[Black "Korchmar, Vasiliy"]
[WhiteFideId "1170791"]
[BlackFideId "24131750"]
[WhiteElo "2526"]
[BlackElo "2681"]
[Result "1-0"]
[Round "5"]
[TimeControl "180+1"]
[Date "2023.08.22"]
[WhiteClock "0:00:08"]
[BlackClock "0:00:02"]
[Board "79"]

1. e4 {[%clk 0:03:00]}  c5 {[%clk 0:02:59]} 2. Nf3 {[%clk 0:03:01]}  d6 {[%clk 0:02:59]} 3. Bb5+ {[%clk 0:03:01]}  Nd7 {[%clk 0:02:59]} 4. a4 {[%clk 0:03:01]}  a6 {[%clk 0:02:59]} 5. Bc4 {[%clk 0:03:01]}  e6 {[%clk 0:02:59]} 6. Nc3 {[%clk 0:03:01]}  Ngf6 {[%clk 0:02:58]} 7. d4 {[%clk 0:03:01]}  cxd4 {[%clk 0:02:58]} 8. Qxd4 {[%clk 0:03:01]}  Be7 {[%clk 0:02:55]} 9. O-O {[%clk 0:02:59]}  b6 {[%clk 0:02:50]} 10. e5 {[%clk 0:02:45]}  dxe5 {[%clk 0:02:50]} 11. Nxe5 {[%clk 0:02:46]}  Bc5 {[%clk 0:02:40]} 12. Qf4 {[%clk 0:02:04]}  Bd6 {[%clk 0:02:24]} 13. Nxf7 {[%clk 0:02:02]}  Bxf4 {[%clk 0:02:24]} 14. Nxd8 {[%clk 0:02:02]}  Bxc1 {[%clk 0:02:25]} 15. Nxe6 {[%clk 0:02:03]}  Bxb2 {[%clk 0:02:25]} 16. Nxg7+ {[%clk 0:01:43]}  Kd8 {[%clk 0:02:22]} 17. Ne6+ {[%clk 0:01:40]}  Ke7 {[%clk 0:02:21]} 18. Rae1 {[%clk 0:01:14]}  Bxc3 {[%clk 0:02:20]} 19. Re3 {[%clk 0:01:15]}  Ne5 {[%clk 0:02:07]} 20. Nc7 {[%clk 0:01:06]}  Ra7 {[%clk 0:02:02]} 21. Nd5+ {[%clk 0:00:44]}  Nxd5 {[%clk 0:02:01]} 22. Bxd5 {[%clk 0:00:45]}  Kd6 {[%clk 0:01:56]} 23. Rd1 {[%clk 0:00:44]}  Be6 {[%clk 0:01:22]} 24. Bxe6+ {[%clk 0:00:37]}  Kxe6 {[%clk 0:01:23]} 25. Rxc3 {[%clk 0:00:37]}  Rd7 {[%clk 0:01:08]} 26. Re1 {[%clk 0:00:37]}  Kf6 {[%clk 0:01:08]} 27. f4 {[%clk 0:00:35]}  Nf7 {[%clk 0:01:04]} 28. Rce3 {[%clk 0:00:27]}  Rd6 {[%clk 0:01:01]} 29. g4 {[%clk 0:00:26]}  Rhd8 {[%clk 0:01:01]} 30. Kg2 {[%clk 0:00:19]}  Rd2+ {[%clk 0:00:57]} 31. Kg3 {[%clk 0:00:19]}  Rxc2 {[%clk 0:00:57]} 32. Re6+ {[%clk 0:00:19]}  Kg7 {[%clk 0:00:58]} 33. g5 {[%clk 0:00:13]}  Rd3+ {[%clk 0:00:54]} 34. Kg4 {[%clk 0:00:13]}  Rg2+ {[%clk 0:00:46]} 35. Kf5 {[%clk 0:00:11]}  Rxh2 {[%clk 0:00:32]} 36. Rxb6 {[%clk 0:00:11]}  Rd5+ {[%clk 0:00:27]} 37. Ke6 {[%clk 0:00:10]}  Rhd2 {[%clk 0:00:13]} 38. Rb7 {[%clk 0:00:08]}  Rd6+ {[%clk 0:00:12]} 39. Kf5 {[%clk 0:00:08]}  Rd7 {[%clk 0:00:07]} 40. Rb6 {[%clk 0:00:09]}  R2d6 {[%clk 0:00:06]} 41. Re6 {[%clk 0:00:09]}  Rxb6 {[%clk 0:00:04]} 42. Rxb6 {[%clk 0:00:09]}  Ra7 {[%clk 0:00:04]} 43. a5 {[%clk 0:00:07]}  Nd8 {[%clk 0:00:03]} 44. Kg4 {[%clk 0:00:06]}  Nb7 {[%clk 0:00:03]} 45. f5 {[%clk 0:00:06]}  Nxa5 {[%clk 0:00:03]} 46. f6+ {[%clk 0:00:07]}  Kg6 {[%clk 0:00:04]} 47. Rb8 {[%clk 0:00:06]}  Nc4 {[%clk 0:00:03]} 48. Rg8+ {[%clk 0:00:06]}  Kf7 {[%clk 0:00:03]} 49. Rg7+ {[%clk 0:00:07]}  Kf8 {[%clk 0:00:04]} 50. Rxa7 {[%clk 0:00:07]}  Ne5+ {[%clk 0:00:02]} 51. Kf5 {[%clk 0:00:08]} 1-0


[Site "https://www.chess.com"]

[Event "Titled Tuesday Blitz August 22 Early 2023"]
[White "Miszler, Levente"]
[Black "Gubajdullin, Alexei"]
[WhiteFideId "763276"]
[BlackFideId "4141202"]
[WhiteElo "2502"]
[BlackElo "2663"]
[Result "0-1"]
[Round "5"]
[TimeControl "180+1"]
[Date "2023.08.22"]
[WhiteClock "0:02:09"]
[BlackClock "0:01:17"]
[Board "81"]

1. c4 {[%clk 0:03:00]}  Nf6 {[%clk 0:02:58]} 2. g3 {[%clk 0:03:01]}  g6 {[%clk 0:02:58]} 3. Bg2 {[%clk 0:03:01]}  Bg7 {[%clk 0:02:57]} 4. Nf3 {[%clk 0:03:02]}  O-O {[%clk 0:02:57]} 5. O-O {[%clk 0:03:02]}  d6 {[%clk 0:02:57]} 6. Nc3 {[%clk 0:03:01]}  Nc6 {[%clk 0:02:57]} 7. d3 {[%clk 0:03:02]}  Nh5 {[%clk 0:02:55]} 8. Rb1 {[%clk 0:03:01]}  f5 {[%clk 0:02:55]} 9. Bg5 {[%clk 0:03:00]}  h6 {[%clk 0:02:47]} 10. Bd2 {[%clk 0:03:00]}  f4 {[%clk 0:02:47]} 11. b4 {[%clk 0:02:57]}  Bg4 {[%clk 0:02:39]} 12. b5 {[%clk 0:02:55]}  Nd4 {[%clk 0:02:38]} 13. Nxd4 {[%clk 0:02:53]}  Bxd4 {[%clk 0:02:38]} 14. Ne4 {[%clk 0:02:45]}  Qd7 {[%clk 0:02:21]} 15. Qe1 {[%clk 0:02:30]}  Rf7 {[%clk 0:01:53]} 16. a4 {[%clk 0:02:27]}  Raf8 {[%clk 0:01:53]} 17. Bc3 {[%clk 0:02:26]}  Bxc3 {[%clk 0:01:42]} 18. Qxc3 {[%clk 0:02:25]}  Bxe2 {[%clk 0:01:38]} 19. Rfe1 {[%clk 0:02:22]}  f3 {[%clk 0:01:24]} 20. Bh1 {[%clk 0:02:22]}  Nf4 {[%clk 0:01:21]} 21. gxf4 {[%clk 0:02:21]}  Rxf4 {[%clk 0:01:19]} 22. Ng3 {[%clk 0:02:21]}  Qh3 {[%clk 0:01:18]} 23. Qd2 {[%clk 0:02:19]}  Rh4 {[%clk 0:01:17]} 24. Rxe2 {[%clk 0:02:07]}  Qxh2+ {[%clk 0:01:17]} 25. Kf1 {[%clk 0:02:08]}  Qxh1+ {[%clk 0:01:17]} 26. Nxh1 {[%clk 0:02:09]}  Rxh1# {[%clk 0:01:17]} 0-1


[Site "https://www.chess.com"]

[Event "Titled Tuesday Blitz August 22 Early 2023"]
[White "Eynullayev, Atilla"]
[Black "szachmistrz2500"]
[WhiteFideId "13413570"]
[WhiteElo "2656"]
[BlackElo "2490"]
[Result "0-1"]
[Round "5"]
[TimeControl "180+1"]
[Date "2023.08.22"]
[WhiteClock "0:00:00"]
[BlackClock "0:00:10"]
[Board "82"]

1. d4 {[%clk 0:03:00]}  Nf6 {[%clk 0:02:58]} 2. c4 {[%clk 0:03:01]}  g6 {[%clk 0:02:58]} 3. Nc3 {[%clk 0:03:01]}  Bg7 {[%clk 0:02:57]} 4. e4 {[%clk 0:03:01]}  d6 {[%clk 0:02:57]} 5. Be2 {[%clk 0:03:02]}  Nbd7 {[%clk 0:02:56]} 6. Be3 {[%clk 0:03:02]}  e5 {[%clk 0:02:56]} 7. d5 {[%clk 0:03:02]}  Nc5 {[%clk 0:02:53]} 8. f3 {[%clk 0:03:03]}  a5 {[%clk 0:02:51]} 9. g4 {[%clk 0:03:02]}  h5 {[%clk 0:02:48]} 10. g5 {[%clk 0:03:02]}  Nfd7 {[%clk 0:02:48]} 11. Qd2 {[%clk 0:03:00]}  a4 {[%clk 0:02:43]} 12. h4 {[%clk 0:03:00]}  b6 {[%clk 0:02:43]} 13. Nh3 {[%clk 0:03:01]}  Qe7 {[%clk 0:02:26]} 14. Nf2 {[%clk 0:03:01]}  Nb8 {[%clk 0:02:24]} 15. Nb5 {[%clk 0:02:54]}  Nba6 {[%clk 0:02:21]} 16. O-O-O {[%clk 0:02:44]}  Bd7 {[%clk 0:02:19]} 17. Kb1 {[%clk 0:02:44]}  O-O {[%clk 0:02:17]} 18. Rdg1 {[%clk 0:02:39]}  Rfd8 {[%clk 0:02:14]} 19. Nd1 {[%clk 0:02:39]}  c6 {[%clk 0:02:13]} 20. Nbc3 {[%clk 0:02:16]}  Nc7 {[%clk 0:02:02]} 21. dxc6 {[%clk 0:02:06]}  Bxc6 {[%clk 0:02:02]} 22. Nd5 {[%clk 0:02:07]}  Nxd5 {[%clk 0:02:00]} 23. cxd5 {[%clk 0:02:06]}  Bd7 {[%clk 0:02:01]} 24. Nc3 {[%clk 0:02:06]}  Qe8 {[%clk 0:01:56]} 25. Rc1 {[%clk 0:01:59]}  Rdc8 {[%clk 0:01:54]} 26. Rc2 {[%clk 0:01:43]}  b5 {[%clk 0:01:53]} 27. Rhc1 {[%clk 0:01:43]}  b4 {[%clk 0:01:49]} 28. Nd1 {[%clk 0:01:37]}  b3 {[%clk 0:01:48]} 29. Rc3 {[%clk 0:01:16]}  bxa2+ {[%clk 0:01:47]} 30. Kxa2 {[%clk 0:00:57]}  Nb3 {[%clk 0:01:47]} 31. Rxc8 {[%clk 0:00:51]}  Bxc8 {[%clk 0:01:48]} 32. Qb4 {[%clk 0:00:43]}  Nxc1+ {[%clk 0:01:47]} 33. Bxc1 {[%clk 0:00:43]}  Ba6 {[%clk 0:01:46]} 34. Bxa6 {[%clk 0:00:41]}  Rxa6 {[%clk 0:01:45]} 35. Nc3 {[%clk 0:00:41]}  Bf8 {[%clk 0:01:43]} 36. Ka3 {[%clk 0:00:31]}  Qc8 {[%clk 0:01:37]} 37. Be3 {[%clk 0:00:28]}  Be7 {[%clk 0:01:34]} 38. Nxa4 {[%clk 0:00:21]}  Qc2 {[%clk 0:01:10]} 39. b3 {[%clk 0:00:21]}  Qc7 {[%clk 0:00:48]} 40. Qc4 {[%clk 0:00:19]}  Qb7 {[%clk 0:00:46]} 41. b4 {[%clk 0:00:15]}  Bd8 {[%clk 0:00:45]} 42. b5 {[%clk 0:00:14]}  Ra8 {[%clk 0:00:44]} 43. Qc6 {[%clk 0:00:13]}  Qb8 {[%clk 0:00:39]} 44. b6 {[%clk 0:00:13]}  Ra5 {[%clk 0:00:36]} 45. b7 {[%clk 0:00:13]}  Bc7 {[%clk 0:00:30]} 46. Kb4 {[%clk 0:00:00]}  Ra8 {[%clk 0:00:10]} 0-1


[Site "https://www.chess.com"]